Cogmind - Beta 15 @@@ ROGUE MODE // 2025.05.19 @ 10:31:28 Player: Cess183 Result: Destroyed by G-34 Mercenary with Small Laser Performance ------------- Evolutions (0) 0 Regions Visited (1) 200 Robots Destroyed (15) 75 Value Destroyed (325) 325 Prototype IDs (0) 0 Alien Tech Used (0) 0 Bonus (0) 0 TOTAL SCORE: 600 Bonus ------- None Cogmind --------- Core Integrity 0/250 Matter 383/400 Energy 160/160 System Corruption 0% Temperature Cool (6) Movement Walking (120) Location -10/Materials Parts ------- > --- POWER (1) -------- Light Nuclear Core > --- PROPULSION (2) --- Aluminum Leg Aluminum Leg > --- UTILITY (2) ------ Small Storage Unit Medium Matter Pod > --- WEAPON (2) ------- Small Laser Hammer > --- INVENTORY (8) ---- Ion Engine Light Ion Engine Light Treads Light Treads Light Treads Propulsion Shielding Peak State ------------ > --- POWER ------------ Light Nuclear Core > --- PROPULSION ------- Aluminum Leg Aluminum Leg > --- UTILITY ---------- Small Storage Unit Medium Matter Pod > --- WEAPON ----------- Small Laser Hammer > --- INVENTORY -------- Ion Engine Light Ion Engine Light Treads Propulsion Shielding [Rating: 9] Favorites ----------- Power Light Nuclear Core Engine Ion Engine Power Core Light Nuclear Core Propulsion Aluminum Leg Treads Light Treads Leg Aluminum Leg Utility Small Storage Unit Storage Small Storage Unit Weapon Small Laser Energy Gun Small Laser Ballistic Gun Assault Rifle Impact Weapon Hammer Build | -11 -10 ------- Run | Yrd Mat Slots Evolved . | . . Power . | . . Propulsion . | . . Utility . | . . Weapon . | . . Parts Attached 13 | 6 7 Power 2 | 1 1 Engine 1 | 1 . Core 1 | . 1 Reactor . | . . Propulsion 4 | 2 2 Treads 2 | 2 . Leg 2 | . 2 Wheel . | . . Hover . | . . Flight . | . . Utility 2 | 1 1 Device . | . . Storage 2 | 1 1 Processor . | . . Hackware . | . . Protection . | . . Artifact . | . . Weapon 5 | 2 3 Energy Gun 3 | 1 2 Energy Cannon . | . . Ballistic Gun 1 | 1 . Ballistic Cannon . | . . Launcher . | . . Special Weapon . | . . Impact Weapon 1 | . 1 Slashing Weapon . | . . Piercing Weapon . | . . Special Melee Weapon . | . . Unidentified Prototypes . | . . Parts Lost 5 | . 5 Power 1 | . 1 Propulsion 1 | . 1 Utility . | . . Weapon 3 | . 3 Highest Loss Streak 5 | . 5 To Critical Strikes . | . . Average Backups 2 | . 3 Power 1 | . 1 Propulsion . | . . Utility . | . . Weapon . | . . Tool/Special . | . . Unused Backups 5 | . 5 Power 2 | . 2 Propulsion 2 | . 2 Utility 1 | . 1 Weapon . | . . Tool/Special . | . . Average Slot Usage (%) 79 | . 79 Engine 4 | . 4 Core 8 | . 8 Treads 9 | . 9 Leg 17 | . 17 Storage 18 | . 18 Energy Gun 13 | . 13 Ballistic Gun 5 | . 5 Impact Weapon 2 | . 2 Peak Build Rating 9 | 6 9 Average Rating 6 | 5 6 On Entrance 3 | . 6 Naked Turns . | . . Heaviest Build 15 | 14 15 Greatest Support 40 | 40 40 Greatest Overweight (x) 1 | 1 1 Average Overweight (x) . | . . Largest Inventory Capacity 8 | 8 8 Average Capacity 7 | 7 8 Most Carried 6 | 1 6 Average Carried 2 | . 3 Final Capacity 8 | 8 8 Final Carried 6 | 1 6 Class Distribution -------------------- 54% | Scavenger-Mutant 45% | Mutant Dominant Class ---------------- Scavenger-Mutant | -10/Materials Resources | -11 -10 ----------- Run | Yrd Mat Matter Collected 501 | 278 223 Remotely . | . . Salvage Created 531 | 135 396 Parts 27 | 5 22 Haulers Intercepted 1 | . 1 Recyclers Shooed . | . . Parts Field Recycled . | . . Retrieved Matter . | . . Parts Self-Destructed . | . . Prevented . | . . Kills | -11 -10 ------- Run | Yrd Mat Combat Hostiles Destroyed 10 | . 10 Melee 1 | . 1 Guns 9 | . 9 Classes Destroyed 5 | 2 3 Worker 3 | 2 1 Hauler 1 | . 1 Recycler 1 | 1 . Swarmer 3 | . 3 Grunt 7 | . 7 Best Kill Streak 3 | 2 3 Combat Bots Only 3 | . 3 Max Kills in Single Turn 1 | 1 1 Gunslinging . | . . Exploded . | . . Melee 1 | . 1 Uniques/NPCs Destroyed . | . . Combat | -11 -10 -------- Run | Yrd Mat Hostile Shots Fired 102 | . 102 Missed 22 | . 22 Hits 80 | . 80 Projectile 80 | . 80 Critical Strikes 1 | . 1 Damage Taken 899 | . 899 Core 254 | . 254 Absorbed by Shields . | . . Core Remaining (%) 100 | 100 . Volleys Fired 57 | 6 51 Largest 2 | 2 2 Hottest 60 | 60 60 Shots Fired 92 | 12 80 Gun 92 | 12 80 Cannon . | . . Launcher . | . . Special . | . . Kinetic 42 | 6 36 Thermal 29 | . 29 Explosive . | . . Electromagnetic 21 | 6 15 Robot Hit Streak 14 | 3 14 Robot Miss Streak 5 | 1 5 Penetration Max . | . . Secondary Targets 2 | . 2 Max Gunslinging Chain 1 | . 1 Shots Hit Robots 59 | 7 52 Core Hits 22 | 3 19 Critical Kills . | . . Critical Parts Destroyed . | . . Critical Strikes 1 | 1 . Corrupt 1 | 1 . Melee Attacks 4 | . 4 Impact 4 | . 4 Slashing . | . . Piercing . | . . Sneak Attacks . | . . Combat Hostiles . | . . Follow-up Attacks . | . . Damage Inflicted 772 | 92 680 Guns 683 | 92 591 Cannons . | . . Explosions . | . . Melee 76 | . 76 Ramming 13 | . 13 Kinetic 324 | 37 287 Thermal 173 | . 173 Explosive . | . . Electromagnetic 186 | 55 131 Impact 76 | . 76 Slashing . | . . Piercing . | . . Highest Corruption . | . . Average Corruption . | . . Corruption Purged . | . . Corruption Blocked . | . . Overload Shots . | . . Overflow Damage . | . . Projectiles . | . . Explosions . | . . Melee . | . . Knockbacks 1 | . 1 Impact 1 | . 1 Kinetic . | . . Secondary . | . . Self-Inflicted Damage . | . . Shots . | . . Rammed . | . . Targets Rammed 3 | . 3 Kicked 3 | . 3 Crushed . | . . Highest Temperature 174 | . 174 Average Temperature 49 | . 49 Received Heat Transfer 459 | . 459 Siege Activations . | . . Martial Activations . | . . Shielding Activations . | . . Robots Disrupted . | . . Combat Hostiles . | . . Robots Corrupted . | . . Combat Hostiles . | . . Parts Fried . | . . Impact Corruptions . | . . Robots Melted . | . . Combat Hostiles . | . . Parts Melted . | . . Heat Transferred 400 | . 400 Parts Sabotaged . | . . Parts Stolen . | . . Parts Stripped . | . . Power Chain Reactions . | . . Alert | -11 -10 ------- Run | Yrd Mat Maximum Alert Level . | . . Low Security (%) 100 | 100 100 Level 1 . | . . Level 2 . | . . Level 3 . | . . Level 4 . | . . Level 5 . | . . High Security . | . . Max Security . | . . Peak Influence 135 | 10 135 Initial 6 | . 6 Average 50 | 1 62 Influence Increases 337 | 15 322 Destroy 0b10 Robot/C 200 | . 200 Destroy 0b10 Robot/NC 25 | 15 10 Destroy Leader 42 | . 42 Successful Hack 10 | . 10 Disable Machine 30 | . 30 Lose Combat Pursuer 30 | . 30 Influence Decreases 300 | 5 295 Entered New Map 4 | . 4 Time Decay 246 | 5 241 Lost Part 50 | . 50 Squads Dispatched 1 | . 1 Investigation . | . . Extermination . | . . Reinforcement 1 | . 1 Assault . | . . Garrison . | . . Intercept . | . . Searches Triggered . | . . Construction Impeded . | . . Haulers Reinforced . | . . Active Scanning Responses . | . . Cargo Convoy Interrupts . | . . Stealth | -11 -10 --------- Run | Yrd Mat Distress Signals . | . . Communications Jammed . | . . Distress Signals . | . . Times Spotted 16 | . 16 Peak Tracking Total 5 | . 5 Tactical Retreats 2 | . 2 Traps | -11 -10 ------- Run | Yrd Mat Traps Triggered . | . . Indirectly . | . . Trap Hack Attempts . | . . Triggered . | . . Disarmed 6 | . 6 Reprogrammed . | . . Reused . | . . Traps Extracted . | . . Installed . | . . Triggered . | . . Machines | -11 -10 ---------- Run | Yrd Mat Machines Disabled 2 | . 2 Max in Single Turn 1 | . 1 Machines Repaired . | . . Machines Dismantled . | . . Machines Sabotaged . | . . Overloaded Fab Kills . | . . Hacking | -11 -10 --------- Run | Yrd Mat Machines Accessed 3 | . 3 Terminals 2 | . 2 Fabricators . | . . Repair Stations . | . . Recycling Units 1 | . 1 Scanalyzers . | . . Garrison Access . | . . Total Hacks 7 | . 7 Successful 7 | . 7 Failed . | . . Catastrophic . | . . Database Lockouts . | . . Manual 4 | . 4 Terminals 4 | . 4 Fabricators . | . . Repair Stations . | . . Recycling Units 3 | . 3 Scanalyzers . | . . Garrison Access . | . . Terminal Hacks 2 | . 2 Disarm Traps 1 | . 1 Zone Layout 1 | . 1 Fabricator Hacks . | . . Repair Station Hacks . | . . Recycling Unit Hacks 3 | . 3 Process 1 | . 1 Report Inventory 1 | . 1 Retrieve Matter 1 | . 1 Scanalyzer . | . . Garrison Access Hacks . | . . Unauthorized Hacks 2 | . 2 Terminals 2 | . 2 Botnet 2 | . 2 Fabricators . | . . Repair Stations . | . . Recycling Units . | . . Scanalyzers . | . . Garrison Access . | . . Data Cores Recovered . | . . Used . | . . Hacking Detections 2 | . 2 Full Trace Events . | . . Feedback Events . | . . Feedback Blocked . | . . Robot Schematics Acquired . | . . Robots Built . | . . Authchips . | . . Time . | . . Total Robot Build Rating . | . . Part Schematics Acquired . | . . Parts Built . | . . Authchips . | . . Time . | . . Total Part Build Rating . | . . Parts Repaired . | . . Time . | . . Parts Recycled . | . . Recycled Matter 2 | . 2 Retrieved Matter 2 | . 2 Retrieved Components . | . . Parts Scanalyzed . | . . Part Schematics Acquired . | . . Parts Damaged . | . . Bothacking | -11 -10 ------------ Run | Yrd Mat Used RIF Installer . | . . Robots Hacked . | . . Non-combat . | . . Combat . | . . Robot Hacks Applied . | . . Relay Couplers Released . | . . Fabnet Peak Effective % . | . . Robots Rewired . | . . Allies Hacked . | . . Hacks Repelled . | . . Allies | -11 -10 -------- Run | Yrd Mat Total Allies . | . . Largest Group . | . . Highest-Rated Group . | . . Highest-Rated Ally . | . . Total Orders . | . . Ally Attacks . | . . Total Damage . | . . Kills . | . . Allies Corrupted . | . . Allies Melted . | . . Intel | -11 -10 ------- Run | Yrd Mat Active Infowar (turns) . | . . Robot Analysis Total . | . . Derelict Logs Recovered . | . . Drone Launches . | . . Drone Recoveries . | . . Exploration | -11 -10 ------------- Run | Yrd Mat Turns Passed 671 | 137 534 Spaces Moved 337 | 71 266 Core 5 | 5 . Treads 121 | 66 55 Legs 211 | . 211 Wheels . | . . Hover . | . . Flight . | . . Fastest Speed 50 | 50 120 Average Speed 134 | 155 129 Slowest Speed 190 | 160 190 Overloaded Moves . | . . Propulsion Burnouts . | . . Robots Hopped . | . . Potential Cave-ins . | . . Cave-ins Triggered . | . . Exploration Rate (%) 22 | 5 39 Regions Visited 1 Branch Regions . Pre-discovered Areas . | . . Known Exits Taken . | . . Unknown Exits Taken 1 | 1 . Scrap Searched . | . . Spaces Dug . | . . Terrain Destroyed . | . . Melee . | . . Projectile . | . . AOE . | . . Terrain Rammed . | . . Walls Destroyed . | . . Machines Disabled . | . . Actions | -11 -10 --------- Run | Yrd Mat Total 450 | 83 367 Wait 30 | . 30 Move 336 | 70 266 Hop . | . . Pick Up 6 | 1 5 Fast Attach 12 | 6 6 Attach 1 | . 1 Detach 1 | . 1 Swap . | . . Drop . | . . Fire 57 | 6 51 Melee 4 | . 4 Ram . | . . Kick 3 | . 3 Crush . | . . Escape Stasis . | . . Rewire . | . . Trap . | . . Miscellaneous . | . . Route ------- -11/Scrapyard -10/Materials History --------- Turn | Location | Event 23 | -11/Scrapyard | Discovered new exit (range 16) 138 | -11/Scrapyard | Entered Materials 291 | -10/Materials | Core integrity fell below 50% 301 | -10/Materials | Build established: Mutant 306 | -10/Materials | Core integrity fell below 20% 358 | -10/Materials | Lost 5 parts (1p1n3w) 617 | -10/Materials | Build established: Scavenger-Mutant 672 | -10/Materials | Destroyed by G-34 Mercenary with Small Laser Last Messages --------------- 00603_ Acquired Lgt. Treads. 00604_ K-01 Serf collects debris. 00609_ R-06 Scavenger collects Power Shielding. 00609_ Acquired Lgt. Treads. 00611_ K-01 Serf collects debris. 00612_ R-06 Scavenger collects Power Shielding. 00615_ K-01 Serf collects debris. 00617_ R-06 Scavenger collects Power Shielding. 00620_ K-01 Serf cleans the Terminal. 00637_ G-34 Mercenary knocked back. 00639_ G-34 Mercenary destroyed. 00656_ Acquired 35 matter. 00657_ K-01 Serf collects debris. 00660_ R-06 Scavenger collects Aluminum Leg. 00665_ K-01 Serf collects debris. 00665_ R-06 Scavenger collects Heat Sink. 00668_ R-06 Scavenger collects Ion Engine. 00669_ K-01 Serf cleans the Pressure Siphon. Map ----- +----------------------------------------------------+ | | | | | ???????????????????????????????????????????? | | ???????????????????????????????????????????? | | ???????????????????????????????????????????? | | ???????????????????????????????????????????? | | ???????????????????????????????????????????? | | ???????????????????????????????????????????? | | ??????????###??????????????????????????????? | | ?????????? #??????????????????????????????? | | ?????????## ##????????????????? ?????????? | | ?????????# ????????????????? #????????? | | ?????????# #????????????????? #????????? | | ?????????# #????????????????# #????????? | | ?????????+ ###########??????# #????????? | | ?????????# ## #??????# #????????? | | ?????????# ## """ #??????# #????????? | | ?????????# ## """ #??????+ +????????? | | ?????????# ## """ #??????# #????????? | | ?????????# / #??????# #????????? | | ?????????# ## """ #??????# #????????? | | ########## ## """ #??????# #????#???? | | # # ## """ #??????# #?? #???? | | # """ # ## r #??????# # ##??? | | # """ # #######g########## + +???? | | # """ # @ #????????? | | # + #????????? | | # # r k""" "T" #????????? | | # ####+####! """ #????????? | | # "Y" ## # """ #????????? | | # """ ## """ # """ #????????? | | ########### """ # u #????????? | | ??# # """ # #????????? | | ??# # # """ """ #????????? | | ??# = # """ # """ """ #????????? | | ??# # """ # """ """ #????????? | | ??# # """ # """ "?" ????????? | | ??#+####+## # ? ???????? | | ??# #??# + """ # ? ????????? | | ###+#### # """ # ############???#???? | | # # # """ # #?# #?? #???? | | # + + # #?#"" # #???? | | # # ####+### ###"Y + #???? | | # """ # #### #?# #"" #? #???? | | # """ # #?# / """ # #???? | | # """ # #?# # """ # #???? | | ######## T #?# ###### """ + #???? | | ######## ### #????########## #???? | | # # ##????????????? #???? | | # # %""" T#?????????????? #???? | +----------------------------------------------------+ Best States ------------- Heat Dissipation 25 Energy Generation 14 Energy Capacity 250 Matter Stores 383 Matter Capacity 400 Sight Range 16 Terrain Scan Density 10 Evasion (%) 55 Recoil Reduction 2 Item Schematics ----------------- None Robot Schematics ------------------ None Fabricated ------------ Nothing Repaired ---------- Nothing Alien Tech Used ----------------- None Achievements -------------- None Challenges ------------ None Game ------ Seed ReflectiveSapperRifle Manual? 0 Play Time 00:07:47 Cumulative 22.6 hours Start 2025.05.19 @ 10:25:00 End 2025.05.19 @ 10:31:28 Sessions 1 Manual Loads 0 Difficulty Rogue Special Mode None Game No. 31 Rogue 31 Adventurer 0 Explorer 0 Win Type - Total 0 Types 0/0/0/0/0/0/0/0/0/0 Lore% 27 Gallery% 19 Achievement% 20 Wizard Run 0 Options --------- Layout 1 ASCII 0 Keyboard 1 Movement Vi Keybinds 0 Fullscreen 1 Font 24/Smallcaps Map View 50x35 Zoom Use 0% Tactical HUD 1 Map Filters NONE Filters NONE Steam 1 RUN: a25b9d54-d3dc-4b3c-8d86-230e82a3e531